[Event "Live Chess"]
[Site "Chess.com"]
[Date "2023.05.20"]
[Round "-"]
[White "BearFromUkraine"]
[Black "risinghelios"]
[Result "0-1"]
[WhiteElo "1188"]
[BlackElo "1954"]
[TimeControl "300"]
[EndTime "9:20:48 PDT"]
[Termination "risinghelios won by resignation"]

1. e4 {[%clk 0:04:57.6]} 1... c5 {[%clk 0:04:59.3]} 2. Nf3 {[%clk 0:04:56.4]}
2... Nc6 {[%clk 0:04:58.8]} 3. d4 {[%clk 0:04:55.6]} 3... cxd4 {[%clk
0:04:58.7]} 4. Nxd4 {[%clk 0:04:54.8]} 4... g6 {[%clk 0:04:58.6]} 5. Nxc6 {[%clk
0:04:50.5]} 5... bxc6 {[%clk 0:04:58.5]} 6. Nc3 {[%clk 0:04:46.2]} 6... Bg7
{[%clk 0:04:58]} 7. Bd3 {[%clk 0:04:44.5]} 7... Nf6 {[%clk 0:04:56.2]} 8. O-O
{[%clk 0:04:41.7]} 8... O-O {[%clk 0:04:55.1]} 9. Be3 {[%clk 0:04:32.2]} 9...
Bb7 {[%clk 0:04:51]} 10. Qd2 {[%clk 0:04:26.7]} 10... d5 {[%clk 0:04:49.4]} 11.
exd5 {[%clk 0:04:21.9]} 11... cxd5 {[%clk 0:04:49.3]} 12. Bg5 {[%clk 0:04:15.5]}
12... h6 {[%clk 0:04:43.7]} 13. Bxf6 {[%clk 0:04:14.3]} 13... exf6 {[%clk
0:04:42.6]} 14. Rfe1 {[%clk 0:04:05.2]} 14... d4 {[%clk 0:04:40]} 15. Ne4 {[%clk
0:04:01.4]} 15... f5 {[%clk 0:04:39]} 16. Nc5 {[%clk 0:03:37.9]} 16... Qd5
{[%clk 0:04:37.7]} 17. Nxb7 {[%clk 0:03:16]} 17... Qxb7 {[%clk 0:04:37.6]} 18.
a3 {[%clk 0:03:05.4]} 18... Qxb2 {[%clk 0:04:36]} 19. Qe2 {[%clk 0:02:52.1]}
19... Rfe8 {[%clk 0:04:32]} 20. Qxe8+ {[%clk 0:02:47.9]} 20... Rxe8 {[%clk
0:04:31.9]} 21. Rxe8+ {[%clk 0:02:47.2]} 21... Kh7 {[%clk 0:04:31.1]} 22. Ree1
{[%clk 0:02:36]} 22... Bf8 {[%clk 0:04:15.7]} 23. c4 {[%clk 0:02:19.4]} 23...
dxc3 {[%clk 0:04:07.3]} 24. Rec1 {[%clk 0:01:58.5]} 24... Bxa3 {[%clk
0:04:02.6]} 0-1

[Event "Live Chess"]
[Site "Chess.com"]
[Date "2023.05.20"]
[Round "-"]
[White "ethanredball"]
[Black "daveeeeR"]
[Result "0-1"]
[WhiteElo "544"]
[BlackElo "1255"]
[TimeControl "300"]
[EndTime "9:20:49 PDT"]
[Termination "daveeeeR won by checkmate"]

1. d4 {[%clk 0:04:57]} 1... c5 {[%clk 0:04:59.9]} 2. dxc5 {[%clk 0:04:54.7]}
2... Nc6 {[%clk 0:04:59]} 3. Nc3 {[%clk 0:04:53]} 3... e5 {[%clk 0:04:58.2]} 4.
e4 {[%clk 0:04:51.3]} 4... Bxc5 {[%clk 0:04:57.2]} 5. Nf3 {[%clk 0:04:49.9]}
5... d6 {[%clk 0:04:54.5]} 6. Bc4 {[%clk 0:04:49.1]} 6... Bg4 {[%clk 0:04:52.3]}
7. h3 {[%clk 0:04:46.7]} 7... Bh5 {[%clk 0:04:50.4]} 8. Be3 {[%clk 0:04:43.2]}
8... Bxe3 {[%clk 0:04:47]} 9. fxe3 {[%clk 0:04:41.4]} 9... Nf6 {[%clk
0:04:39.5]} 10. Bd5 {[%clk 0:04:37.1]} 10... O-O {[%clk 0:04:34.3]} 11. Bxc6
{[%clk 0:04:35.5]} 11... bxc6 {[%clk 0:04:33.1]} 12. Qe2 {[%clk 0:04:28.1]}
12... Qb6 {[%clk 0:04:30.9]} 13. O-O-O {[%clk 0:04:24.4]} 13... a5 {[%clk
0:04:22.4]} 14. g4 {[%clk 0:04:17.7]} 14... Bg6 {[%clk 0:04:20]} 15. g5 {[%clk
0:04:16.2]} 15... Nxe4 {[%clk 0:04:18]} 16. Nxe4 {[%clk 0:04:14.2]} 16... Bxe4
{[%clk 0:04:17.2]} 17. h4 {[%clk 0:04:11.1]} 17... Rab8 {[%clk 0:04:15.5]} 18.
b3 {[%clk 0:04:06.7]} 18... a4 {[%clk 0:04:14]} 19. h5 {[%clk 0:03:57.3]} 19...
axb3 {[%clk 0:04:11.5]} 20. axb3 {[%clk 0:03:55.8]} 20... Ra8 {[%clk 0:03:57.9]}
21. g6 {[%clk 0:03:54.2]} 21... h6 {[%clk 0:03:56.2]} 22. gxf7+ {[%clk
0:03:52.1]} 22... Rxf7 {[%clk 0:03:55.4]} 23. Rh4 {[%clk 0:03:41.8]} 23... Bxf3
{[%clk 0:03:53.3]} 24. Qf1 {[%clk 0:03:35.8]} 24... Bxd1 {[%clk 0:03:52]} 25.
Qxd1 {[%clk 0:03:32.3]} 25... Ra1+ {[%clk 0:03:49.9]} 26. Kd2 {[%clk 0:03:30.4]}
26... Rxd1+ {[%clk 0:03:49.4]} 27. Kxd1 {[%clk 0:03:29.2]} 27... Qxe3 {[%clk
0:03:48.4]} 28. Ra4 {[%clk 0:03:26.8]} 28... Rf1# {[%clk 0:03:44.1]} 0-1

[Event "Live Chess"]
[Site "Chess.com"]
[Date "2023.05.20"]
[Round "-"]
[White "jennybobby44"]
[Black "ConorMaclaud"]
[Result "1-0"]
[WhiteElo "1853"]
[BlackElo "2125"]
[TimeControl "300"]
[EndTime "9:20:54 PDT"]
[Termination "jennybobby44 won by checkmate"]

1. e4 {[%clk 0:04:59.2]} 1... c6 {[%clk 0:04:59.4]} 2. c4 {[%clk 0:04:57.8]}
2... d5 {[%clk 0:04:59.3]} 3. exd5 {[%clk 0:04:57.2]} 3... cxd5 {[%clk
0:04:58.5]} 4. cxd5 {[%clk 0:04:56.8]} 4... Nf6 {[%clk 0:04:57.9]} 5. Nc3 {[%clk
0:04:56]} 5... Nxd5 {[%clk 0:04:57.3]} 6. d4 {[%clk 0:04:54.5]} 6... Nc6 {[%clk
0:04:56.3]} 7. Bc4 {[%clk 0:04:48.7]} 7... e6 {[%clk 0:04:53.2]} 8. Nf3 {[%clk
0:04:46.2]} 8... Be7 {[%clk 0:04:52.1]} 9. O-O {[%clk 0:04:42.3]} 9... O-O
{[%clk 0:04:50.6]} 10. a3 {[%clk 0:04:39.9]} 10... a6 {[%clk 0:04:48.4]} 11.
Nxd5 {[%clk 0:04:27]} 11... exd5 {[%clk 0:04:46.9]} 12. Bd3 {[%clk 0:04:26.6]}
12... Bg4 {[%clk 0:04:37.7]} 13. h3 {[%clk 0:04:24]} 13... Bxf3 {[%clk
0:04:35.7]} 14. Qxf3 {[%clk 0:04:21.2]} 14... Nxd4 {[%clk 0:04:20.4]} 15. Qh5
{[%clk 0:04:17.3]} 15... g6 {[%clk 0:04:16.2]} 16. Qg4 {[%clk 0:04:08.6]} 16...
Nb3 {[%clk 0:04:13.3]} 17. Rb1 {[%clk 0:03:59.2]} 17... Nxc1 {[%clk 0:04:11.4]}
18. Rbxc1 {[%clk 0:03:58.6]} 18... Bf6 {[%clk 0:04:08.9]} 19. b4 {[%clk
0:03:53.2]} 19... Bb2 {[%clk 0:04:06.1]} 20. Rc2 {[%clk 0:03:48.4]} 20... Bg7
{[%clk 0:03:52.6]} 21. Rfc1 {[%clk 0:03:40.7]} 21... d4 {[%clk 0:03:50.1]} 22.
h4 {[%clk 0:03:36.9]} 22... Bh6 {[%clk 0:03:45.9]} 23. Rd1 {[%clk 0:03:31.2]}
23... Rc8 {[%clk 0:03:44.5]} 24. Rxc8 {[%clk 0:03:25.6]} 24... Qxc8 {[%clk
0:03:41]} 25. Qxd4 {[%clk 0:03:24.7]} 25... Bg7 {[%clk 0:03:37.7]} 26. Qc4
{[%clk 0:03:08.7]} 26... Bb2 {[%clk 0:03:12.3]} 27. a4 {[%clk 0:02:51.6]} 27...
Rd8 {[%clk 0:03:05.5]} 28. Qxc8 {[%clk 0:02:44.6]} 28... Rxc8 {[%clk 0:03:02.2]}
29. Be4 {[%clk 0:02:43.9]} 29... Rc7 {[%clk 0:02:59.6]} 30. Rd8+ {[%clk
0:02:38.3]} 30... Kg7 {[%clk 0:02:58.4]} 31. Rb8 {[%clk 0:02:37.2]} 31... Ba3
{[%clk 0:02:49.8]} 32. Rxb7 {[%clk 0:02:27.6]} 32... Rc4 {[%clk 0:02:26.9]} 33.
Bd5 {[%clk 0:02:14.1]} 33... Rxb4 {[%clk 0:02:24.7]} 34. Rxf7+ {[%clk
0:02:12.2]} 34... Kh6 {[%clk 0:02:23.9]} 35. g3 {[%clk 0:01:47.4]} 35... Rxa4
{[%clk 0:02:20.7]} 36. Rb7 {[%clk 0:01:35.5]} 36... a5 {[%clk 0:02:13.4]} 37.
Bg8 {[%clk 0:01:34.1]} 37... Kh5 {[%clk 0:02:00.4]} 38. Rxh7+ {[%clk 0:01:27.9]}
38... Kg4 {[%clk 0:01:59.2]} 39. Kg2 {[%clk 0:01:26.5]} 39... Kf5 {[%clk
0:01:50.8]} 40. Rf7+ {[%clk 0:01:21.3]} 40... Ke5 {[%clk 0:01:46.1]} 41. Re7+
{[%clk 0:01:18.5]} 41... Kf6 {[%clk 0:01:42.9]} 42. Ra7 {[%clk 0:01:11.6]} 42...
Bb4 {[%clk 0:01:39.1]} 43. Bh7 {[%clk 0:01:03.7]} 43... Ra2 {[%clk 0:01:31.8]}
44. Ra6+ {[%clk 0:01:02]} 44... Kg7 {[%clk 0:01:30.8]} 45. Bxg6 {[%clk
0:00:58.6]} 45... Bc5 {[%clk 0:01:29.8]} 46. Be4 {[%clk 0:00:51.9]} 46... Rxf2+
{[%clk 0:01:28.3]} 47. Kh3 {[%clk 0:00:49.9]} 47... Bb4 {[%clk 0:01:23.8]} 48.
h5 {[%clk 0:00:46.7]} 48... Rf6 {[%clk 0:01:18.2]} 49. Rxf6 {[%clk 0:00:42.3]}
49... Kxf6 {[%clk 0:01:17.2]} 50. Kg4 {[%clk 0:00:39.7]} 50... Kg7 {[%clk
0:01:16.1]} 51. Kf5 {[%clk 0:00:38]} 51... a4 {[%clk 0:01:12.5]} 52. Bd5 {[%clk
0:00:37]} 52... a3 {[%clk 0:01:10.2]} 53. g4 {[%clk 0:00:36.3]} 53... Bc3 {[%clk
0:01:09.5]} 54. g5 {[%clk 0:00:34.9]} 54... Bb2 {[%clk 0:01:08.2]} 55. h6+
{[%clk 0:00:32.2]} 55... Kh8 {[%clk 0:01:07.3]} 56. Kg6 {[%clk 0:00:31.1]} 56...
Ba1 {[%clk 0:01:06.1]} 57. Kf7 {[%clk 0:00:29.5]} 57... Bb2 {[%clk 0:01:05]} 58.
g6 {[%clk 0:00:28.7]} 58... Be5 {[%clk 0:00:26.4]} 59. g7+ {[%clk 0:00:23.6]}
59... Bxg7 {[%clk 0:00:22.8]} 60. hxg7+ {[%clk 0:00:23]} 60... Kh7 {[%clk
0:00:19.5]} 61. g8=Q+ {[%clk 0:00:22.3]} 61... Kh6 {[%clk 0:00:15.7]} 62. Qg6#
{[%clk 0:00:21.2]} 1-0

[Event "Live Chess"]
[Site "Chess.com"]
[Date "2023.05.20"]
[Round "-"]
[White "Rusty_Bridges"]
[Black "gmnorfolk"]
[Result "0-1"]
[WhiteElo "1420"]
[BlackElo "2068"]
[TimeControl "300"]
[EndTime "9:20:54 PDT"]
[Termination "gmnorfolk won on time"]

1. e4 {[%clk 0:04:58.7]} 1... e5 {[%clk 0:04:58.1]} 2. f4 {[%clk 0:04:57.1]}
2... Nc6 {[%clk 0:04:58]} 3. Nf3 {[%clk 0:04:55.1]} 3... Nb8 {[%clk 0:04:57.9]}
4. Bc4 {[%clk 0:04:52.2]} 4... d5 {[%clk 0:04:57.8]} 5. exd5 {[%clk 0:04:50.1]}
5... exf4 {[%clk 0:04:57.7]} 6. O-O {[%clk 0:04:45.1]} 6... Nf6 {[%clk
0:04:55.3]} 7. Re1+ {[%clk 0:04:35.3]} 7... Be7 {[%clk 0:04:53.3]} 8. d3 {[%clk
0:04:31.1]} 8... O-O {[%clk 0:04:51.6]} 9. Bxf4 {[%clk 0:04:29]} 9... Bg4 {[%clk
0:04:44.5]} 10. Nbd2 {[%clk 0:04:26.5]} 10... Nbd7 {[%clk 0:04:41.4]} 11. Qe2
{[%clk 0:04:21.2]} 11... Re8 {[%clk 0:04:38.2]} 12. Qf2 {[%clk 0:04:19.9]} 12...
Nb6 {[%clk 0:04:33.9]} 13. Bb3 {[%clk 0:04:07.3]} 13... Nbxd5 {[%clk 0:04:29.1]}
14. Bxd5 {[%clk 0:04:03.8]} 14... Nxd5 {[%clk 0:04:27.1]} 15. Bxc7 {[%clk
0:03:23.6]} 15... Qxc7 {[%clk 0:04:21.3]} 16. Ne5 {[%clk 0:03:20.9]} 16... Be6
{[%clk 0:04:12.6]} 17. Ne4 {[%clk 0:03:14.9]} 17... h6 {[%clk 0:04:03.9]} 18.
Ng3 {[%clk 0:02:44.4]} 18... Bf6 {[%clk 0:03:58.3]} 19. d4 {[%clk 0:02:34.8]}
19... Rac8 {[%clk 0:03:50.8]} 20. c3 {[%clk 0:02:33.1]} 20... b5 {[%clk
0:03:39.7]} 21. Ne4 {[%clk 0:02:31.3]} 21... Bxe5 {[%clk 0:03:37.5]} 22. dxe5
{[%clk 0:02:27.6]} 22... Qxe5 {[%clk 0:03:30.6]} 23. Rad1 {[%clk 0:02:08.1]}
23... Qf4 {[%clk 0:03:29.3]} 24. Qxa7 {[%clk 0:01:50.3]} 24... Ne3 {[%clk
0:03:23.9]} 25. Rd4 {[%clk 0:01:40.5]} 25... Nf5 {[%clk 0:02:59.4]} 26. Rd3
{[%clk 0:01:23.8]} 26... Qc7 {[%clk 0:02:53.3]} 27. Qf2 {[%clk 0:01:16.2]} 27...
Rcd8 {[%clk 0:02:42]} 28. Rf3 {[%clk 0:01:00.7]} 28... Nd6 {[%clk 0:02:33.6]}
29. Ng3 {[%clk 0:00:52.1]} 29... Bg4 {[%clk 0:02:26]} 30. Rfe3 {[%clk
0:00:47.3]} 30... Rxe3 {[%clk 0:02:24.2]} 31. Rxe3 {[%clk 0:00:46]} 31... Re8
{[%clk 0:02:19.8]} 32. Rd3 {[%clk 0:00:36.4]} 32... Be6 {[%clk 0:02:11.5]} 33.
Nh5 {[%clk 0:00:19.5]} 33... Bf5 {[%clk 0:02:04.7]} 34. Rd1 {[%clk 0:00:16.6]}
34... Ne4 {[%clk 0:01:59.4]} 35. Qd4 {[%clk 0:00:14.9]} 35... Qe5 {[%clk
0:01:51.7]} 36. Qa7 {[%clk 0:00:10.3]} 36... Bg6 {[%clk 0:01:47.7]} 37. Ng3
{[%clk 0:00:08.8]} 37... Nxg3 {[%clk 0:01:43.3]} 38. hxg3 {[%clk 0:00:08.7]}
38... Qxg3 {[%clk 0:01:37.4]} 39. Qc5 {[%clk 0:00:06.6]} 39... Re2 {[%clk
0:01:32.1]} 40. Qd5 {[%clk 0:00:03.2]} 40... Be4 {[%clk 0:01:27.3]} 41. Qd8+
{[%clk 0:00:01.6]} 41... Kh7 {[%clk 0:01:26.1]} 0-1

[Event "Live Chess"]
[Site "Chess.com"]
[Date "2023.05.20"]
[Round "-"]
[White "KirbyHasARevenge"]
[Black "Singapourfeuj"]
[Result "0-1"]
[WhiteElo "1744"]
[BlackElo "2318"]
[TimeControl "300"]
[EndTime "9:20:56 PDT"]
[Termination "Singapourfeuj won on time"]

1. e4 {[%clk 0:04:59]} 1... e6 {[%clk 0:04:59.1]} 2. c4 {[%clk 0:04:57.6]} 2...
d5 {[%clk 0:04:57.9]} 3. cxd5 {[%clk 0:04:57.5]} 3... exd5 {[%clk 0:04:56]} 4.
exd5 {[%clk 0:04:57.4]} 4... Nf6 {[%clk 0:04:52.9]} 5. d4 {[%clk 0:04:56.6]}
5... Bd6 {[%clk 0:04:51.8]} 6. Nc3 {[%clk 0:04:55.2]} 6... O-O {[%clk
0:04:50.2]} 7. Nf3 {[%clk 0:04:54.1]} 7... Re8+ {[%clk 0:04:49]} 8. Be2 {[%clk
0:04:53.3]} 8... Bg4 {[%clk 0:04:45.4]} 9. O-O {[%clk 0:04:51.9]} 9... Nbd7
{[%clk 0:04:38.5]} 10. Bg5 {[%clk 0:04:51.1]} 10... h6 {[%clk 0:04:36.5]} 11.
Bh4 {[%clk 0:04:49.5]} 11... Nf8 {[%clk 0:04:31.2]} 12. h3 {[%clk 0:04:45.3]}
12... Bf5 {[%clk 0:04:26.9]} 13. Ne5 {[%clk 0:04:26.5]} 13... Bxe5 {[%clk
0:04:20.4]} 14. dxe5 {[%clk 0:04:26.4]} 14... Rxe5 {[%clk 0:04:19.3]} 15. Bg3
{[%clk 0:04:24.6]} 15... Re8 {[%clk 0:04:17]} 16. Bf3 {[%clk 0:04:23.3]} 16...
Ng6 {[%clk 0:04:15.6]} 17. Re1 {[%clk 0:04:15.7]} 17... Qd7 {[%clk 0:04:12.4]}
18. Qd2 {[%clk 0:04:08.7]} 18... Rxe1+ {[%clk 0:03:57.2]} 19. Rxe1 {[%clk
0:04:03.7]} 19... Re8 {[%clk 0:03:56.1]} 20. Rxe8+ {[%clk 0:03:51.9]} 20... Nxe8
{[%clk 0:03:54.7]} 21. Ne2 {[%clk 0:03:10.9]} 21... Nd6 {[%clk 0:03:50.5]} 22.
Nd4 {[%clk 0:02:58.7]} 22... Ne4 {[%clk 0:03:46.3]} 23. Bxe4 {[%clk 0:02:44.4]}
23... Bxe4 {[%clk 0:03:45.3]} 24. d6 {[%clk 0:02:38.9]} 24... cxd6 {[%clk
0:03:43.5]} 25. a3 {[%clk 0:02:32.2]} 25... d5 {[%clk 0:03:42.3]} 26. f3 {[%clk
0:02:29.1]} 26... Bf5 {[%clk 0:03:37.4]} 27. Kf2 {[%clk 0:02:17.1]} 27... Be6
{[%clk 0:03:31.9]} 28. Qd3 {[%clk 0:01:47.4]} 28... Ne7 {[%clk 0:03:24.8]} 29.
Nb5 {[%clk 0:01:36.8]} 29... a6 {[%clk 0:03:22.4]} 30. Nc3 {[%clk 0:01:35]}
30... Nc6 {[%clk 0:03:14.2]} 31. Ke2 {[%clk 0:01:27.3]} 31... d4 {[%clk
0:03:03.2]} 32. Ne4 {[%clk 0:01:16.3]} 32... Bf5 {[%clk 0:03:00.2]} 33. Bf4
{[%clk 0:00:55.6]} 33... Qd5 {[%clk 0:02:49]} 34. g4 {[%clk 0:00:47.8]} 34...
Bxe4 {[%clk 0:02:46.3]} 35. fxe4 {[%clk 0:00:47.7]} 35... Qe6 {[%clk 0:02:42.1]}
36. Kf3 {[%clk 0:00:46.4]} 36... b5 {[%clk 0:02:39.6]} 37. h4 {[%clk 0:00:31.3]}
37... Qc4 {[%clk 0:02:37.2]} 38. Ke2 {[%clk 0:00:28]} 38... h5 {[%clk 0:02:31]}
39. g5 {[%clk 0:00:23.3]} 39... g6 {[%clk 0:02:27.3]} 40. e5 {[%clk 0:00:19.2]}
40... Qd5 {[%clk 0:02:24.1]} 41. b3 {[%clk 0:00:14.8]} 41... Nxe5 {[%clk
0:02:21.4]} 42. Bxe5 {[%clk 0:00:13.5]} 42... Qxe5+ {[%clk 0:02:19.8]} 43. Kd2
{[%clk 0:00:13.4]} 43... Qh2+ {[%clk 0:02:16.1]} 44. Qe2 {[%clk 0:00:11.4]}
44... Qxe2+ {[%clk 0:02:12.5]} 45. Kxe2 {[%clk 0:00:10.2]} 45... f6 {[%clk
0:02:09.4]} 46. Kd3 {[%clk 0:00:10.1]} 46... fxg5 {[%clk 0:02:08.2]} 47. hxg5
{[%clk 0:00:09.5]} 47... Kf7 {[%clk 0:02:05.9]} 48. Kxd4 {[%clk 0:00:09]} 48...
Ke6 {[%clk 0:02:05.1]} 49. a4 {[%clk 0:00:08]} 49... bxa4 {[%clk 0:02:03.9]} 50.
bxa4 {[%clk 0:00:07.9]} 50... a5 {[%clk 0:02:03.1]} 51. Ke4 {[%clk 0:00:06.8]}
51... Kd6 {[%clk 0:02:01.8]} 52. Kf4 {[%clk 0:00:06.7]} 52... Kc5 {[%clk
0:02:00.3]} 53. Ke5 {[%clk 0:00:06.6]} 53... h4 {[%clk 0:01:59.3]} 54. Kf6
{[%clk 0:00:06.5]} 54... h3 {[%clk 0:01:58.6]} 55. Kxg6 {[%clk 0:00:06.4]} 55...
h2 {[%clk 0:01:57.8]} 56. Kf7 {[%clk 0:00:06.3]} 56... h1=Q {[%clk 0:01:51.7]}
57. g6 {[%clk 0:00:06.2]} 57... Qf3+ {[%clk 0:01:49.9]} 58. Ke8 {[%clk
0:00:03.6]} 58... Qe4+ {[%clk 0:01:44.9]} 59. Kf7 {[%clk 0:00:03.5]} 59... Qf5+
{[%clk 0:01:43.7]} 60. Kg7 {[%clk 0:00:03.4]} 60... Kb4 {[%clk 0:01:41.3]} 61.
Kh7 {[%clk 0:00:03.3]} 61... Kxa4 {[%clk 0:01:40]} 62. Kg7 {[%clk 0:00:03]}
62... Kb4 {[%clk 0:01:38.8]} 63. Kh6 {[%clk 0:00:02.9]} 63... Qxg6+ {[%clk
0:01:37.5]} 64. Kxg6 {[%clk 0:00:02]} 64... a4 {[%clk 0:01:36.7]} 65. Kf6 {[%clk
0:00:01.9]} 65... a3 {[%clk 0:01:30.7]} 66. Kf5 {[%clk 0:00:01.8]} 66... a2
{[%clk 0:01:29.6]} 67. Ke5 {[%clk 0:00:01.7]} 67... a1=Q+ {[%clk 0:01:28.3]} 68.
Ke4 {[%clk 0:00:01.6]} 68... Qd1 {[%clk 0:01:25]} 69. Ke3 {[%clk 0:00:01.5]}
69... Kc4 {[%clk 0:01:24.2]} 70. Kf4 {[%clk 0:00:00.6]} 70... Qe2 {[%clk
0:01:23.3]} 71. Kg3 {[%clk 0:00:00.5]} 71... Qf1 {[%clk 0:01:22.1]} 72. Kh4
{[%clk 0:00:00.4]} 72... Qg2 {[%clk 0:01:20.8]} 73. Kh5 {[%clk 0:00:00.3]} 73...
Kd5 {[%clk 0:01:20.1]} 74. Kh6 {[%clk 0:00:00.2]} 74... Ke5 {[%clk 0:01:17.9]}
75. Kh7 {[%clk 0:00:00.1]} 75... Kf6 {[%clk 0:01:16.3]} 0-1

[Event "Live Chess"]
[Site "Chess.com"]
[Date "2023.05.20"]
[Round "-"]
[White "CroasArRheun"]
[Black "JoshMcK"]
[Result "1-0"]
[WhiteElo "1842"]
[BlackElo "1543"]
[TimeControl "300"]
[EndTime "9:21:01 PDT"]
[Termination "CroasArRheun won by resignation"]

1. d4 {[%clk 0:04:58.9]} 1... d5 {[%clk 0:04:57.1]} 2. c4 {[%clk 0:04:57.4]}
2... e6 {[%clk 0:04:56.6]} 3. Nc3 {[%clk 0:04:56.3]} 3... Nf6 {[%clk 0:04:56.1]}
4. cxd5 {[%clk 0:04:55.6]} 4... exd5 {[%clk 0:04:55.4]} 5. Bg5 {[%clk
0:04:54.6]} 5... c6 {[%clk 0:04:51.2]} 6. e3 {[%clk 0:04:53.4]} 6... h6 {[%clk
0:04:48.3]} 7. Bh4 {[%clk 0:04:51.3]} 7... Be7 {[%clk 0:04:47.5]} 8. Bd3 {[%clk
0:04:50]} 8... O-O {[%clk 0:04:46.4]} 9. Nge2 {[%clk 0:04:48.7]} 9... Ne4 {[%clk
0:04:31.6]} 10. Bxe7 {[%clk 0:04:38.3]} 10... Qxe7 {[%clk 0:04:31.5]} 11. Bxe4
{[%clk 0:04:34.1]} 11... dxe4 {[%clk 0:04:31.4]} 12. Ng3 {[%clk 0:04:33.6]}
12... f5 {[%clk 0:04:22.8]} 13. O-O {[%clk 0:04:29.1]} 13... Nd7 {[%clk
0:04:13.3]} 14. Qb3+ {[%clk 0:04:26.7]} 14... Qf7 {[%clk 0:04:08.5]} 15. d5
{[%clk 0:04:09.7]} 15... cxd5 {[%clk 0:04:03.3]} 16. Nxd5 {[%clk 0:04:04.6]}
16... Ne5 {[%clk 0:03:50.4]} 17. Ne7+ {[%clk 0:03:52]} 17... Kh8 {[%clk
0:03:47.7]} 18. Qxf7 {[%clk 0:03:49.9]} 18... Nxf7 {[%clk 0:03:44.1]} 19. Nexf5
{[%clk 0:03:49]} 19... Ng5 {[%clk 0:03:38.3]} 20. Ne7 {[%clk 0:03:42.2]} 20...
Be6 {[%clk 0:03:29.1]} 21. Ng6+ {[%clk 0:03:39.7]} 21... Kh7 {[%clk 0:03:27.3]}
22. Nxf8+ {[%clk 0:03:39.6]} 22... Rxf8 {[%clk 0:03:26]} 23. Rac1 {[%clk
0:03:37.7]} 23... Bxa2 {[%clk 0:03:23.6]} 24. Ra1 {[%clk 0:03:36]} 24... Bc4
{[%clk 0:03:21.2]} 25. Rfc1 {[%clk 0:03:33.1]} 25... Ba6 {[%clk 0:03:18.7]} 26.
b4 {[%clk 0:03:28.4]} 26... Ne6 {[%clk 0:03:10]} 27. b5 {[%clk 0:03:27.5]} 27...
Bxb5 {[%clk 0:03:09.1]} 28. Rxa7 {[%clk 0:03:26]} 28... Ba6 {[%clk 0:03:08.2]}
29. Nxe4 {[%clk 0:03:22.7]} 29... Rd8 {[%clk 0:02:56.1]} 30. h3 {[%clk
0:03:16.4]} 30... Ng5 {[%clk 0:02:52.5]} 31. Nxg5+ {[%clk 0:03:15.1]} 31... hxg5
{[%clk 0:02:52.4]} 32. Rc5 {[%clk 0:03:13.6]} 32... Kh6 {[%clk 0:02:50.4]} 33.
Rc7 {[%clk 0:03:11.1]} 33... g6 {[%clk 0:02:44.1]} 34. Kh2 {[%clk 0:03:08.8]}
34... Rf8 {[%clk 0:02:35.5]} 35. Kg3 {[%clk 0:03:06.8]} 35... g4 {[%clk
0:02:27.6]} 36. hxg4 {[%clk 0:03:04.1]} 36... Kg5 {[%clk 0:02:25.8]} 37. f4+
{[%clk 0:03:02.6]} 37... Kh6 {[%clk 0:02:24.9]} 38. g5+ {[%clk 0:03:01.3]} 1-0